fUSD/lending_fUSD_20260422
["ID","MTS","AMOUNT","RATE_DAILY","PERIOD"]
[420964632,1776815438173,-150.0,8.605e-05,2]
[420964633,1776815438183,-149.06611658,8.605e-05,2]
[420964634,1776815438435,-0.93388342,8.605e-05,2]
[420964635,1776815438444,-150.0,8.605e-05,2]
[420964636,1776815438454,-150.0,8.605e-05,2]
[420964637,1776815438463,-150.0,8.605e-05,2]
[420964638,1776815438473,-28.50283358,8.623e-05,2]
[420964639,1776815438484,-121.49716642,8.623e-05,2]
[420964640,1776815438494,-150.0,8.641e-05,2]
[420964641,1776815438503,-150.0,8.659e-05,2]
[420964642,1776815438512,-150.0,8.676e-05,2]
[420964643,1776815438522,-150.0,8.694e-05,2]
[420964644,1776815438531,-150.0,8.712e-05,2]
[420964645,1776815438540,-150.0,8.712e-05,2]
[420964646,1776815438549,-150.0,8.725e-05,2]
[420964647,1776815438559,-150.0,8.725e-05,2]
[420964648,1776815438568,-150.0,8.729e-05,2]
[420964649,1776815438577,-150.0,8.747e-05,2]
[420964650,1776815438591,-150.0,8.765e-05,2]
[420964651,1776815438600,-150.0,8.783e-05,2]
[420964652,1776815438609,-150.0,8.8e-05,2]
[420964653,1776815438618,-150.0,8.818e-05,2]
[420964654,1776815438628,-150.0,8.818e-05,2]
[420964655,1776815438637,-150.0,8.836e-05,2]
[420964656,1776815438647,-150.0,8.845e-05,2]
[420964658,1776815438657,-150.0,8.845e-05,2]
[420964659,1776815438666,-150.0,8.853e-05,2]
[420964661,1776815438675,-150.0,8.871e-05,2]
[420964662,1776815438684,-150.0,8.889e-05,2]
[420964663,1776815438694,-150.0,8.906e-05,2]
[420964664,1776815438704,-150.0,8.924e-05,2]
[420964665,1776815438714,-150.0,8.924e-05,2]
[420964666,1776815438724,-150.0,8.942e-05,2]
[420964667,1776815438734,-2000.0,8.958e-05,2]
[420964668,1776815438743,-150.0,8.96e-05,2]
[420964669,1776815438752,-150.0,8.96e-05,2]
[420964670,1776815438762,-150.0,8.964e-05,2]
[420964671,1776815438772,-122.84064681,8.964e-05,2]
[420964672,1776815438803,-27.15935319,8.964e-05,2]
[420964673,1776815438813,-500.0,8.964e-05,2]
[420964674,1776815438823,-150.0,8.977e-05,2]
[420964675,1776815438833,-150.0,8.995e-05,2]
[420964676,1776815438842,-150.0,9.013e-05,2]
[420964677,1776815438851,-150.0,9.03e-05,2]
[420964678,1776815438861,-150.0,9.03e-05,2]
[420964680,1776815438870,-150.0,9.048e-05,2]
[420964681,1776815438879,-150.0,9.066e-05,2]
[420964682,1776815438888,-150.0,9.084e-05,2]
[420964683,1776815438897,-150.0,9.084e-05,2]
[420964684,1776815438907,-150.0,9.084e-05,2]
[420964685,1776815438916,-33.17337647,9.101e-05,2]
[420964687,1776815438928,-116.82662353,9.101e-05,2]
[420964689,1776815438938,-150.0,9.119e-05,2]
[420964691,1776815438947,-177.17337647,9.135e-05,2]
[420964695,1776815438979,-20.83662353,9.135e-05,2]
[420964696,1776815438988,-150.0,9.137e-05,2]
[420964697,1776815438998,-150.0,9.137e-05,2]
[420964698,1776815439007,-150.0,9.154e-05,2]
[420964699,1776815439016,-150.0,9.172e-05,2]
[420964700,1776815439026,-43.40546646,9.173e-05,2]
[420964701,1776815439037,-3131.23509527,9.173e-05,2]
[420964702,1776815439049,-17249.53243827,9.173e-05,2]
[420964703,1776815439058,-150.0,9.19e-05,2]
[420964704,1776815439067,-587.3691,9.194e-05,2]
[420964705,1776815439076,-8344.68350157,9.194e-05,2]
[420964706,1776815439088,-5901.31739843,9.194e-05,2]
[420964707,1776815439097,-2727.5349,9.194e-05,2]
[420964708,1776815439107,-2500.0,9.194e-05,2]
[420964709,1776815439116,-150.0,9.203e-05,2]
[420964710,1776815439126,-150.0,9.203e-05,2]
[420964711,1776815439135,-150.0,9.208e-05,2]
[420964712,1776815439144,-150.0,9.225e-05,2]
[420964713,1776815439154,-623.26170367,9.238e-05,2]
[420964714,1776815439164,-150.0,9.243e-05,2]
[420964715,1776815439174,-150.0,9.243e-05,2]
[420964716,1776815439184,-781.2513,9.26e-05,2]
[420964717,1776815439193,-150.0,9.261e-05,2]
[420964718,1776815439204,-500.0,9.273e-05,2]
[420964719,1776815439215,-500.0,9.273e-05,2]
[420964720,1776815439225,-150.0,9.278e-05,2]
[420964721,1776815439235,-629.35,9.293e-05,2]
[420964722,1776815439244,-2291.603,9.293e-05,2]
[420964723,1776815439254,-159.625,9.293e-05,2]
[420964724,1776815439263,-235.0,9.294e-05,3]
[420964725,1776815439278,-154.0,9.294e-05,3]
[420964726,1776815439288,-153.75433783,9.296e-05,2]
[420964727,1776815439298,-150.0,9.296e-05,2]
[420964728,1776815439308,-150.0,9.314e-05,2]
[420964729,1776815439318,-150.0,9.323e-05,2]
[420964730,1776815439328,-150.0,9.323e-05,2]
[420964731,1776815439337,-150.0,9.331e-05,2]
[420964732,1776815439347,-150.0,9.349e-05,2]
[420964733,1776815439356,-150.0,9.349e-05,2]
[420964734,1776815439368,-150.0,9.367e-05,2]
[420964735,1776815439377,-162.58,9.375e-05,2]
[420964736,1776815439387,-150.0,9.385e-05,2]
[420964737,1776815439397,-150.0,9.402e-05,2]
[420964738,1776815439407,-150.0,9.42e-05,2]
[420964739,1776815439416,-150.0,9.438e-05,2]
[420964740,1776815439426,-150.0,9.442e-05,2]
[420964741,1776815439435,-150.0,9.442e-05,2]
[420964742,1776815439445,-150.0,9.455e-05,2]
[420964743,1776815439455,-150.0,9.455e-05,2]
[420964744,1776815439464,-500.0,9.464e-05,2]
[420964745,1776815439474,-250.0,9.464e-05,2]
[420964746,1776815439483,-420.0,9.465e-05,2]
[420964747,1776815439493,-420.0,9.465e-05,2]
[420964748,1776815439503,-1680.0,9.465e-05,2]
[420964749,1776815439513,-150.0,9.473e-05,2]
[420964750,1776815439522,-150.0,9.491e-05,2]
[420964751,1776815439532,-150.0,9.509e-05,2]
[420964752,1776815439542,-150.0,9.526e-05,2]
[420964753,1776815439552,-502.84265253,9.543e-05,2]
[420964754,1776815439562,-162.73439341,9.543e-05,2]
[420964755,1776815439572,-500.0,9.543e-05,2]
[420964756,1776815439583,-150.0,9.544e-05,2]
[420964757,1776815439593,-209.03579245,9.549e-05,2]
[420964758,1776815439603,-800.57109369,9.549e-05,2]
[420964759,1776815439614,-801.92539945,9.549e-05,2]
[420964760,1776815439623,-500.0,9.553e-05,2]
[420964761,1776815439632,-500.0,9.553e-05,2]
[420964762,1776815439642,-150.0,9.562e-05,2]
[420964763,1776815439652,-150.0,9.562e-05,2]
[420964764,1776815439662,-150.0,9.562e-05,2]
[420964765,1776815439672,-150.0,9.562e-05,2]
[420964766,1776815439686,-150.0,9.562e-05,2]
[420964767,1776815439695,-150.0,9.562e-05,2]
[420964768,1776815439705,-150.0,9.562e-05,2]
[420964770,1776815439715,-215.510772,9.562e-05,2]
[420964771,1776815439725,-629.35,9.567e-05,2]
[420964772,1776815439735,-383.7767323,9.579e-05,2]
[420964773,1776815439745,-4239.22,9.589e-05,2]
[420964774,1776815439755,-9388.52552381,9.603e-05,2]
[420964776,1776815440401,-2180.36272786,9.603e-05,2]
[420964777,1776815440413,-3025.21854833,9.603e-05,2]
[420964778,1776815440423,-200.0,9.667e-05,2]
[420964779,1776815440435,-150.0,9.773e-05,2]
[420964780,1776815440449,-254.86309859,9.773e-05,2]
[420964781,1776815440465,-150.0,9.773e-05,2]
[420964782,1776815440479,-150.0,9.773e-05,2]
[420964783,1776815440491,-150.0,9.773e-05,2]
[420964784,1776815440504,-900.0,9.8e-05,3]
[420964785,1776815440517,-281.174279,9.8e-05,2]
[420964786,1776815440535,-629.35,9.841e-05,2]
[420964787,1776815440550,-255.0,9.856e-05,2]
[420964788,1776815440564,-1800.0,9.9e-05,3]
[420964789,1776815440580,-160.0,9.936e-05,2]
[420964790,1776815440594,-235.0,9.963e-05,3]
[420964791,1776815440608,-200.0,0.0001,2]
[420964792,1776815440622,-151.0,0.0001,2]
[420964793,1776815440636,-500.0,0.0001,2]
[420964794,1776815440649,-216.31767006,0.0001,2]
[420964795,1776815440662,-151.0,0.0001,2]
[420964796,1776815440672,-500.0,0.0001,2]
[420964797,1776815440686,-151.0,0.0001,2]
[420964798,1776815440700,-500.0,0.0001,2]
[420964799,1776815440713,-151.0,0.0001,2]
[420964801,1776815440728,-151.0,0.0001,2]
[420964803,1776815440741,-500.0,0.0001,2]
[420964805,1776815440755,-151.0,0.0001,2]
[420964808,1776815440769,-500.0,0.0001,2]
[420964810,1776815440784,-151.0,0.0001,2]
[420964813,1776815440795,-500.0,0.0001,2]
[420964815,1776815440806,-151.0,0.0001,2]
[420964817,1776815440818,-500.0,0.0001,2]
[420964820,1776815440833,-336.86945026,0.0001,2]
[420964824,1776815440854,-163.13054974,0.0001,2]
[420964826,1776815440867,-500.0,0.0001,2]
[420964829,1776815440887,-50.54902368,0.0001,2]
[420964831,1776815440924,-449.45097632,0.0001,2]
[420964832,1776815440937,-151.0,0.0001,2]
[420964833,1776815440948,-500.0,0.0001,2]
[420964834,1776815440960,-151.0,0.0001,2]
[420964835,1776815441026,-151.0,0.0001,2]
[420964836,1776815441041,-477.70312947,0.0001,3]
[420964837,1776815441074,-1933.47872742,0.0001,3]
[420964864,1776815445439,-388.81814311,0.0001,3]
[420964865,1776815445449,-500.0,0.0001,2]
[420964866,1776815445459,-500.0,0.0001,2]
[420964867,1776815445468,-500.0,0.0001,2]
[420964868,1776815445478,-500.0,0.0001,2]
[420964869,1776815445488,-500.0,0.0001,2]
[420964870,1776815445498,-500.0,0.0001,2]
[420964871,1776815445507,-151.0,0.0001,2]
[420964872,1776815445516,-500.0,0.0001,2]
[420964873,1776815445526,-500.0,0.0001,2]
[420964874,1776815445535,-578.20924308,0.00010032,2]
[420964875,1776815445545,-1428.38747117,0.00010032,2]
[420964876,1776815445555,-6399.62158822,0.00010032,2]
[420964877,1776815445587,-2483.06692658,0.00010032,2]
[420964878,1776815445597,-204.32529248,0.00010032,2]
[420964879,1776815445607,-500.0,0.00010032,2]
[420964880,1776815445618,-743.50770149,0.00010032,2]
[420964881,1776815445627,-635.43923494,0.00010032,2]
[420964882,1776815445639,-85.68842041,0.00010032,2]
[420964883,1776815445648,-194.72792766,0.00010032,2]
[420964885,1776815445658,-174.61919142,0.00010032,2]
[420964887,1776815445667,-1383.82493811,0.00010078,2]
[420964890,1776815445686,-616.17506189,0.00010078,2]
[420964892,1776815445695,-1000.0,0.00010091,2]
[420964895,1776815445704,-1000.0,0.00010101,2]
[420964896,1776815445714,-629.35,0.00010115,2]
[420964897,1776815445724,-18301.2625295,0.00010324,2]
[420964899,1776815445733,-700.0,0.00010379,2]
[420964901,1776815445743,-350.0,0.0001038,2]
[420964902,1776815445752,-629.35,0.00010389,2]
[420964903,1776815445761,-587.0,0.00010411,2]
[420964904,1776815445771,-2351.0,0.00010411,2]
[420964905,1776815445780,-167.0,0.00010411,2]
[420964906,1776815445795,-1044.948,0.00010433,2]
[420964907,1776815445804,-416.0,0.00010433,2]
[420964908,1776815445813,-2474.0,0.00010433,2]
[420964909,1776815445823,-3622.0,0.00010433,2]
[420964910,1776815445832,-5530.0,0.000105,5]
[420964911,1776815445841,-162.58,0.00010547,2]
[420964912,1776815445850,-200.0,0.00010548,2]
[420964913,1776815445860,-1481.23780761,0.0001058,2]
[420964914,1776815445869,-459.29,0.000106,2]
[420964915,1776815445879,-1000.0,0.00010611,2]
[420964916,1776815445888,-250.0,0.00010614,2]
[420964917,1776815445897,-250.0,0.00010614,2]
[420964918,1776815445907,-250.0,0.00010614,2]
[420964919,1776815445916,-235.0,0.00010631,3]
[420964920,1776815445928,-1500.0,0.00010638,2]
[420964921,1776815445938,-1500.0,0.00010649,2]
[420964922,1776815445947,-198.01,0.00010657,2]
[420964923,1776815445956,-629.35,0.00010663,2]
[420964924,1776815445965,-85.96761666,0.0001069,2]
[420964925,1776815445990,-130.35005339,0.0001069,2]
[420964926,1776815445999,-161.0,0.0001069,2]
[420964927,1776815446009,-7106.02141056,0.000107,2]
[420964929,1776815446320,-874.04884267,0.000107,2]
[420964930,1776815446333,-15508.24104039,0.000107,2]
[420964931,1776815446349,-2460.32725833,0.000107,2]
[420964933,1776815446360,-938.79006384,0.000107,2]
[420964935,1776815446383,-657.92929977,0.000107,2]
[420965055,1776815918505,-169.94,7.837e-05,2]
[420965063,1776816562761,150.0,0.00011233,120]
[420965065,1776816623437,10730.06,7.739e-05,2]
[420965066,1776816628773,-313.52863131,7.739e-05,2]
[420965068,1776816630853,-260.00131455,7.739e-05,2]
[420965069,1776816632013,-356.44950306,7.739e-05,2]
[420965070,1776816632066,-4768.71055108,7.739e-05,2]
[420965071,1776816632076,-150.0,8.236e-05,2]
[420965072,1776816632086,-150.0,8.236e-05,2]
[420965073,1776816632096,-150.0,8.236e-05,2]
[420965074,1776816632106,-150.0,8.236e-05,2]
[420965075,1776816632116,-150.0,8.236e-05,2]
[420965076,1776816632127,-150.0,8.236e-05,2]
[420965077,1776816632137,-150.0,8.236e-05,2]
[420965078,1776816632147,-300.0,8.263e-05,2]
[420965079,1776816632157,-150.0,8.289e-05,2]
[420965080,1776816632167,-150.0,8.319e-05,2]
[420965081,1776816632177,-150.0,8.343e-05,2]
[420965082,1776816632187,-150.0,8.397e-05,2]
[420965083,1776816632197,-1200.0,8.401e-05,2]
[420965084,1776816632207,-150.0,8.402e-05,2]
[420965085,1776816632217,-150.0,8.419e-05,2]
[420965086,1776816632227,-150.0,8.419e-05,2]
[420965088,1776816632237,-150.0,8.451e-05,2]
[420965089,1776816632247,-150.0,8.464e-05,2]
[420965091,1776816632257,-150.0,8.485e-05,2]
[420965092,1776816632268,-150.0,8.505e-05,2]
[420965093,1776816632278,-150.0,8.559e-05,2]
[420965094,1776816632288,-150.0,8.568e-05,2]
[420965096,1776816632299,-300.0,8.601e-05,2]
[420965098,1776816632309,-300.0,8.601e-05,2]
[420965099,1776816632319,-150.0,8.602e-05,2]
[420965100,1776816632329,-150.0,8.602e-05,2]
[420965101,1776816632339,-150.0,8.612e-05,2]
[420965102,1776816632350,-150.0,8.652e-05,2]
[420965103,1776816632360,-150.0,8.666e-05,2]
[420965104,1776816632370,-150.0,8.693e-05,2]
[420965105,1776816632380,-150.0,8.72e-05,2]
[420965106,1776816632391,-150.0,8.735e-05,2]
[420965107,1776816632402,-150.0,8.774e-05,2]
[420965108,1776816632412,-150.0,8.785e-05,2]
[420965109,1776816632422,-150.0,8.785e-05,2]
[420965110,1776816632438,-800.0,8.8e-05,3]
[420965111,1776816632448,-150.0,8.818e-05,2]
[420965112,1776816632459,-150.0,8.828e-05,2]
[420965113,1776816632470,-2400.115,8.879e-05,2]
[420965114,1776816632480,-164.58,8.879e-05,2]
[420965115,1776816632491,-150.0,8.882e-05,2]
[420965116,1776816632501,-1600.0,8.9e-05,3]
[420965117,1776816632511,-150.0,8.901e-05,2]
[420965118,1776816632521,-150.0,8.922e-05,2]
[420965119,1776816632531,-150.0,8.935e-05,2]
[420965120,1776816632541,-500.0,8.959e-05,2]
[420965121,1776816632551,-585.20041674,8.959e-05,2]
[420965122,1776816632561,-265.64748128,8.959e-05,2]
[420965123,1776816632571,-359.55351361,8.959e-05,2]
[420965124,1776816632581,-500.0,8.959e-05,2]
[420965125,1776816632591,-457.3466933,8.959e-05,2]
[420965126,1776816632601,-500.0,8.959e-05,2]
[420965127,1776816632611,-500.0,8.959e-05,2]
[420965128,1776816632621,-152.15411963,8.959e-05,2]
[420965129,1776816632631,-500.0,8.959e-05,2]
[420965130,1776816632641,-500.0,8.959e-05,2]
[420965131,1776816632651,-500.0,8.959e-05,2]
[420965132,1776816632661,-217.29227619,8.959e-05,2]
[420965133,1776816632671,-500.0,8.959e-05,2]
[420965134,1776816632681,-500.0,8.959e-05,2]
[420965135,1776816632691,-500.0,8.959e-05,2]
[420965136,1776816632701,-325.07137475,8.959e-05,2]
[420965137,1776816632711,-500.0,8.959e-05,2]
[420965138,1776816632721,-500.0,8.959e-05,2]
[420965139,1776816632730,-500.0,8.959e-05,2]
[420965140,1776816632740,-500.0,8.959e-05,2]
[420965141,1776816632751,-500.0,8.959e-05,2]
[420965142,1776816632761,-500.0,8.959e-05,2]
[420965143,1776816632771,-500.0,8.959e-05,2]
[420965144,1776816632781,-500.0,8.959e-05,2]
[420965145,1776816632790,-500.0,8.959e-05,2]
[420965146,1776816632800,-500.0,8.959e-05,2]
[420965147,1776816632810,-500.0,8.959e-05,2]
[420965148,1776816632820,-214.0205414,8.959e-05,2]
[420965149,1776816632833,-500.0,8.959e-05,2]
[420965150,1776816632843,-500.0,8.959e-05,2]
[420965151,1776816632853,-500.0,8.959e-05,2]
[420965152,1776816632863,-500.0,8.959e-05,2]
[420965153,1776816632873,-500.0,8.959e-05,2]
[420965154,1776816632883,-500.0,8.959e-05,2]
[420965155,1776816632892,-500.0,8.959e-05,2]
[420965156,1776816632902,-500.0,8.959e-05,2]
[420965157,1776816632912,-500.0,8.959e-05,2]
[420965158,1776816632922,-363.55953053,8.959e-05,2]
[420965159,1776816632932,-500.0,8.959e-05,2]
[420965160,1776816632941,-500.0,8.959e-05,2]
[420965161,1776816632951,-500.0,8.959e-05,2]
[420965162,1776816632962,-500.0,8.959e-05,2]
[420965163,1776816632972,-500.0,8.959e-05,2]
[420965164,1776816632981,-500.0,8.959e-05,2]
[420965165,1776816632991,-500.0,8.959e-05,2]
[420965166,1776816633001,-500.0,8.959e-05,2]
[420965167,1776816633011,-500.0,8.959e-05,2]
[420965168,1776816633021,-500.0,8.959e-05,2]
[420965169,1776816633031,-500.0,8.959e-05,2]
[420965170,1776816633041,-500.0,8.959e-05,2]
[420965171,1776816633051,-500.0,8.959e-05,2]
[420965172,1776816633066,-500.0,8.959e-05,2]
[420965173,1776816633076,-500.0,8.959e-05,2]
[420965174,1776816633086,-500.0,8.959e-05,2]
[420965175,1776816633096,-500.0,8.959e-05,2]
[420965176,1776816633107,-500.0,8.959e-05,2]
[420965177,1776816633117,-500.0,8.959e-05,2]
[420965178,1776816633127,-500.0,8.959e-05,2]
[420965179,1776816633138,-500.0,8.959e-05,2]
[420965180,1776816633148,-323.78006016,8.959e-05,2]
[420965181,1776816633158,-500.0,8.959e-05,2]
[420965182,1776816633169,-500.0,8.959e-05,2]
[420965183,1776816633179,-500.0,8.959e-05,2]
[420965184,1776816633189,-500.0,8.959e-05,2]
[420965185,1776816633199,-500.0,8.959e-05,2]
[420965186,1776816633209,-500.0,8.959e-05,2]
[420965187,1776816633219,-499.99999999,8.959e-05,2]
[420965188,1776816633229,-2500.0,8.96e-05,2]
[420965189,1776816633240,-884312.9609,8.96e-05,2]
[420965190,1776816633249,-150.0,8.968e-05,2]
[420965191,1776816633260,-150.0,8.968e-05,2]
[420965192,1776816633271,-3057.33182765,8.968e-05,2]
[420965193,1776816633282,-150.0,8.984e-05,2]
[420965194,1776816633292,-150.0,8.989e-05,2]
[420965195,1776816633302,-2400.0,9e-05,3]
[420965196,1776816633312,-1049.58,9.041e-05,2]
[420965197,1776816633322,-500.0,9.043e-05,2]
[420965198,1776816633332,-500.0,9.043e-05,2]
[420965199,1776816633342,-150.0,9.043e-05,2]
[420965200,1776816633352,-300.0,9.059e-05,2]
[420965201,1776816633363,-150.0,9.067e-05,2]
[420965202,1776816633373,-150.0,9.097e-05,2]
[420965203,1776816633384,-150.0,9.151e-05,2]
[420965204,1776816633394,-150.0,9.151e-05,2]
[420965205,1776816633404,-150.0,9.151e-05,2]
[420965206,1776816633415,-150.0,9.151e-05,2]
[420965207,1776816633425,-174.898464,9.151e-05,2]
[420965208,1776816633435,-150.0,9.151e-05,2]
[420965209,1776816633446,-271.34945638,9.205e-05,2]
[420965210,1776816633460,-318.52,9.301e-05,2]
[420965211,1776816633471,-420.0,9.461e-05,2]
[420965212,1776816633481,-500.0,9.591e-05,2]
[420965213,1776816633491,-1000.0,9.591e-05,2]
[420965214,1776816633501,-238.81,9.617e-05,2]
[420965215,1776816633511,-500.0,9.704e-05,2]
[420965216,1776816633522,-11465.53649796,9.753e-05,2]
[420965217,1776816633538,-3460.79636991,9.753e-05,2]
[420965218,1776816633555,-29963.61195602,9.753e-05,2]
[420965219,1776816633575,-720.22605909,9.753e-05,2]
[420965220,1776816633603,-130.81911702,9.753e-05,2]
[420965221,1776816633613,-297.56786638,9.773e-05,2]
[420965222,1776816633625,-202.43213362,9.773e-05,2]
[420965223,1776816633636,-491.18088298,9.773e-05,2]
[420965224,1776816633648,-8.81911702,9.773e-05,2]
[420965225,1776816633659,-500.0,9.773e-05,2]
[420965226,1776816633669,-350.0,9.773e-05,2]
[420965227,1776816633679,-500.0,9.773e-05,2]
[420965228,1776816633691,-500.0,9.773e-05,2]
[420965229,1776816633701,-500.0,9.773e-05,2]
[420965230,1776816633711,-500.0,9.773e-05,2]
[420965231,1776816633721,-500.0,9.773e-05,2]
[420965232,1776816633731,-500.0,9.773e-05,2]
[420965233,1776816633741,-500.0,9.773e-05,2]
[420965234,1776816633751,-2440.48,9.874e-05,2]
[420965235,1776816633760,-695.48142436,9.874e-05,2]
[420965252,1776816639268,-1111.0,9.395e-05,2]
[420965253,1776816639277,-5546.42045116,9.874e-05,2]
[420965254,1776816639289,-800.71742749,9.874e-05,2]
[420965255,1776816639326,-591.87798681,9.874e-05,2]
[420965256,1776816639339,-559.53366536,9.874e-05,2]
[420965257,1776816639350,-1980.58075856,9.874e-05,2]
[420965258,1776816639362,-736.12857669,9.874e-05,2]
[420965259,1776816639383,-601.21970957,9.874e-05,2]
[420965260,1776816639392,-150.0,9.881e-05,2]
[420965261,1776816639401,-3101.34419148,9.908e-05,2]
[420965262,1776816639413,-365.92580852,9.908e-05,2]
[420965263,1776816639423,-160.0,9.926e-05,2]
[420965264,1776816639432,-151.13982857,0.0001,2]
[420965265,1776816639441,-153.03171837,0.0001,2]
[420965266,1776816639451,-263.85099198,0.0001,2]
[420965267,1776816639460,-487.05573722,0.0001,2]
[420965268,1776816639470,-325.30621445,0.0001,2]
[420965269,1776816639482,-124.37006047,0.0001,2]
[420965270,1776816639491,-494.72539055,0.0001,2]
[420965271,1776816639500,-439.86124348,0.0001,2]
[420965272,1776816639519,-297.28257251,0.0001,2]
[420965273,1776816639530,-879.54028418,0.0001,2]
[420965274,1776816639541,-7030.31589983,0.0001,2]
[420965275,1776816639551,-315.46326883,0.0001,2]
[420965276,1776816639560,-215.38143999,0.0001,2]
[420965277,1776816639569,-490.108396,0.0001,2]
[420965310,1776816640002,-490.108396,0.0001,2]
[420965312,1776816640012,-500.0,0.0001,2]
[420965314,1776816640022,-151.0,0.0001,2]
[420965316,1776816640033,-500.0,0.0001,2]
[420965318,1776816640043,-151.0,0.0001,2]
[420965320,1776816640052,-490.108396,0.0001,2]
[420965322,1776816640062,-490.108396,0.0001,2]
[420965324,1776816640072,-578.20924308,0.00010114,2]
[420965326,1776816640082,-328.78715171,0.00010114,2]
[420965328,1776816640091,-1428.38747117,0.00010114,2]
[420965330,1776816640101,-9552.16786547,0.00010114,2]
[420965332,1776816640110,-2000.0,0.00010114,2]
[420965333,1776816640119,-2000.0,0.00010114,2]
[420965335,1776816640128,-416.75333542,0.00010114,2]
[420965337,1776816640138,-743.50770149,0.00010114,2]
[420965339,1776816640147,-721.12765535,0.00010114,2]
[420965342,1776816640156,-151.0,0.00010114,2]
[420965345,1776816640166,-174.61919141,0.00010114,2]
[420965348,1776816640175,-235.75327194,0.00010114,2]
[420965351,1776816640185,-244.476143,0.00010114,2]
[420965354,1776816640194,-253.52176029,0.00010114,2]
[420965357,1776816640204,-262.90206542,0.00010114,2]
[420965360,1776816640213,-272.62944185,0.00010114,2]
[420965362,1776816640222,-282.71673119,0.00010114,2]
[420965364,1776816640231,-293.17725025,0.00010114,2]
[420965366,1776816640241,-304.02480851,0.00010114,2]
[420965368,1776816640250,-230.79852751,0.00010114,2]
[420965370,1776816640260,-209.40437684,0.00010114,2]
[420965372,1776816640269,-209.40437684,0.00010114,2]
[420965373,1776816640279,-1500.0,0.00010138,2]
[420965374,1776816640288,-5530.0,0.000103,3]
[420965375,1776816640298,-2000.0,0.000104,2]
[420965376,1776816640307,-1117.0,0.00010402,2]
[420965377,1776816640316,-587.0,0.00010407,2]
[420965378,1776816640325,-700.0,0.00010418,2]
[420965379,1776816640335,-150.0,0.00010433,2]
[420965380,1776816640344,-1305.00562133,0.00010433,2]
[420965381,1776816640356,-4725.99437867,0.00010433,2]
[420965382,1776816640365,-2474.0,0.00010433,2]
[420965383,1776816640375,-2199.41432103,0.00010433,2]
[420965384,1776816640515,-1724.43063607,0.00010433,2]
[420965385,1776816640524,-9529.80910496,0.00010435,2]
[420965386,1776816640537,-1109.5857,0.00010435,2]
[420965387,1776816640621,-2414.10485394,0.00010435,2]
[420965388,1776816640633,-573.52994586,0.00010435,2]
[420965389,1776816640681,-2819.22291,0.00010435,2]
[420965401,1776816646362,-429.64575227,8.96e-05,2]
[420965402,1776816646374,-515.32199994,8.96e-05,2]
[420965403,1776816646386,-469.78000001,8.96e-05,2]
[420965404,1776816646415,-45033.0662582,8.96e-05,2]
[420965405,1776816646471,-7290.57382423,8.96e-05,2]
[420965418,1776816646631,-1751.70942853,8.96e-05,2]
[420965436,1776816646791,-717.72,8.96e-05,2]
[420965599,1776817517450,1239.88,8e-05,10]
[420965607,1776817832239,-1285.44,7.778e-05,2]
[420965608,1776817832249,-2964.28,7.825e-05,2]
[420965609,1776817832258,-250.0,7.922e-05,2]
[420965610,1776817832268,-700.41,8.018e-05,2]
[420965611,1776817832277,-1600.0,8.057e-05,2]
[420965612,1776817832286,-300.0,8.062e-05,2]
[420965613,1776817832295,-300.0,8.062e-05,2]
[420965614,1776817832304,-1200.0,8.062e-05,2]
[420965615,1776817832313,-300.0,8.062e-05,2]
[420965616,1776817832323,-150.0,8.063e-05,2]
[420965617,1776817832332,-150.0,8.063e-05,2]
[420965618,1776817832345,-150.0,8.063e-05,2]
[420965619,1776817832355,-150.0,8.063e-05,2]
[420965620,1776817832364,-150.0,8.063e-05,2]
[420965621,1776817832373,-150.0,8.063e-05,2]
[420965622,1776817832382,-150.0,8.063e-05,2]